fUSD/lending_fUSD_20240217
["ID","MTS","AMOUNT","RATE_DAILY","PERIOD"]
[314331095,1708189839243,-4925.21006067,0.0003143,4]
[314331097,1708189839254,-7387.45,0.00031468,2]
[314331099,1708189839264,-155.0,0.00031507,2]
[314331101,1708189839273,-307602.173937,0.000318,3]
[314331102,1708189839282,-188.82299201,0.00031864,2]
[314331103,1708189839293,-155.6,0.00031963,2]
[314331104,1708189839312,-275.97,0.00031963,2]
[314331105,1708189839322,-1526.68,0.00032076,2]
[314331106,1708189839331,-4396.26985613,0.00032125,2]
[314331107,1708189839341,-1315.66,0.00032146,2]
[314331108,1708189839351,-1000.0,0.00032185,2]
[314331110,1708189839361,-155.6,0.00032572,2]
[314331112,1708189839371,-409.8,0.00032703,2]
[314331114,1708189839381,-23661.7056875,0.00032867,4]
[314331116,1708189839390,-37326.86,0.00032877,2]
[314331118,1708189839400,-155.0,0.00032877,2]
[314331120,1708189839410,-204.65,0.0003288,2]
[314331124,1708189839421,-150.1,0.000329,2]
[314331127,1708189839431,-8000.0,0.000329,2]
[314331130,1708189839441,-1527.12122368,0.00033,2]
[314331133,1708189839451,-11830.8528437,0.00033102,4]
[314331136,1708189839462,-7387.45,0.00033112,2]
[314331139,1708189839478,-1315.66,0.00033112,2]
[314331142,1708189839498,-155.6,0.00033181,2]
[314331147,1708189839508,-275.97,0.00033353,2]
[314331150,1708189839518,-155.6,0.0003379,2]
[314331153,1708189839528,-153.12463739,0.000339,2]
[314331156,1708189839538,-153.12463729,0.000339,2]
[314331159,1708189839548,-153.12463729,0.000339,2]
[314331162,1708189839557,-153.12463729,0.000339,2]
[314331165,1708189839567,-153.12463729,0.000339,2]
[314331168,1708189839578,-153.12463729,0.000339,2]
[314331171,1708189839588,-153.12463729,0.000339,2]
[314331174,1708189839598,-153.12463729,0.000339,2]
[314331178,1708189839608,-153.12463729,0.00033967,2]
[314331180,1708189839618,-6642.0,0.000342,2]
[314331183,1708189839627,-155.0,0.00034247,2]
[314331185,1708189839638,-1526.68,0.0003434,2]
[314331187,1708189839648,-155.6,0.00034399,2]
[314331188,1708189839658,-200.0,0.00034482,120]
[314331189,1708189839668,-9753.2,0.00034521,2]
[314331190,1708189839678,-275.97,0.00034743,2]
[314331192,1708189839688,-23661.7056875,0.0003479,6]
[314331194,1708189839698,-4727.245898,0.000348,2]
[314331196,1708189839708,-28102.561725,0.000348,2]
[314331198,1708189839718,-150.1,0.000348,3]
[314331200,1708189839728,-3056.24969866,0.000349,2]
[314331202,1708189839738,-3056.24969856,0.000349,2]
[314331204,1708189839748,-3056.24969856,0.000349,2]
[314331206,1708189839758,-3056.24969856,0.000349,2]
[314331208,1708189839768,-3056.24969856,0.000349,2]
[314331210,1708189839779,-3056.24969856,0.000349,2]
[314331212,1708189839788,-3056.24969856,0.000349,2]
[314331214,1708189839798,-15872.75458595,0.00035,7]
[314331216,1708189839807,-7291.98510558,0.00035,7]
[314331219,1708189839817,-230.08544777,0.00035,7]
[314331221,1708189839827,-38661.45884693,0.00035,4]
[314331223,1708189839837,-155.6,0.00035008,2]
[314331225,1708189839850,-5554.75335707,0.00035048,7]
[314331227,1708189839860,-1000.0,0.00035111,2]
[314331229,1708189839870,-500.0,0.00035148,30]
[314331232,1708189839880,-500.0,0.00035148,30]
[314331234,1708189839889,-500.0,0.00035148,30]
[314331236,1708189839899,-500.0,0.00035148,30]
[314331238,1708189839910,-500.0,0.00035148,30]
[314331240,1708189839920,-500.0,0.00035148,30]
[314331242,1708189839930,-477.79598774,0.00035148,30]
[314331244,1708189839941,-206.0,0.00035262,2]
[314331246,1708189839951,-153.12463729,0.00035347,2]
[314331249,1708189839960,-2000.0,0.000356,2]
[314331251,1708189839970,-2000.0,0.000356,2]
[314331253,1708189839982,-6642.41894876,0.000356,2]
[314331255,1708189839992,-500.0,0.00035616,2]
[314331257,1708189840002,-500.0,0.00035616,2]
[314331259,1708189840011,-500.0,0.00035616,2]
[314331261,1708189840024,-500.0,0.00035616,2]
[314331263,1708189840034,-500.0,0.00035616,2]
[314331265,1708189840043,-500.0,0.00035616,2]
[314331267,1708189840054,-500.0,0.00035616,2]
[314331269,1708189840064,-500.0,0.00035616,2]
[314331271,1708189840073,-500.0,0.00035616,2]
[314331273,1708189840083,-500.0,0.00035616,2]
[314331275,1708189840093,-500.0,0.00035616,2]
[314331280,1708189840103,-500.0,0.00035616,2]
[314331282,1708189840113,-500.0,0.00035616,2]
[314331284,1708189840128,-500.0,0.00035616,2]
[314331286,1708189840137,-500.0,0.00035616,2]
[314331288,1708189840147,-500.0,0.00035616,2]
[314331290,1708189840157,-500.0,0.00035616,2]
[314331292,1708189840166,-500.0,0.00035616,2]
[314331294,1708189840176,-500.0,0.00035616,2]
[314331296,1708189840186,-500.0,0.00035616,2]
[314331299,1708189840197,-155.6,0.00035616,2]
[314331301,1708189840208,-201.70261338,0.00035616,2]
[314331303,1708189840218,-1500.0,0.00035616,10]
[314331305,1708189840228,-6502.51,0.00035616,2]
[314331307,1708189840237,-157.05791938,0.00035617,2]
[314331309,1708189840247,-9753.2,0.00035798,2]
[314331311,1708189840257,-7090.868848,0.000358,2]
[314331313,1708189840267,-42153.842588,0.000358,2]
[314331316,1708189840277,-188.82299199,0.00035828,2]
[314331318,1708189840287,-1686.33479566,0.0003591,5]
[314331320,1708189840298,-151.0,0.00035927,120]
[314331322,1708189840307,-150.0,0.00036,2]
[314331324,1708189840317,-3056.24969856,0.00036043,2]
[314331326,1708189840327,-275.97,0.00036133,2]
[314331328,1708189840337,-5554.75335702,0.00036216,9]
[314331330,1708189840347,-155.6,0.00036225,2]
[314331332,1708189840357,-43476.0,0.00036384,4]
[314331335,1708189840370,-56095.1228317,0.00036389,2]
[314331337,1708189840380,-56095.12283166,0.00036389,2]
[314331339,1708189840391,-56095.12283166,0.00036389,2]
[314331341,1708189840401,-56095.12283166,0.00036389,2]
[314331343,1708189840411,-56095.12283166,0.00036389,2]
[314331345,1708189840421,-40346.90677439,0.000365,7]
[314331347,1708189840431,-1526.68,0.00036604,2]
[314331349,1708189840441,-151.0,0.00036661,30]
[314331352,1708189840451,-767.7430866,0.00036698,2]
[314331354,1708189840463,-838.65705195,0.00036698,2]
[314331356,1708189840473,-153.2804704,0.00036698,2]
[314331358,1708189840483,-1152.02558216,0.00036698,2]
[314331360,1708189840492,-153.12463729,0.00036726,2]
[314331362,1708189840502,-18344.17007784,0.00036789,2]
[314331364,1708189840512,-56095.12283166,0.00036789,2]
[314331366,1708189840522,-16167.22250986,0.00036798,2]
[314331368,1708189840531,-16167.22250978,0.00036798,2]
[314331370,1708189840541,-16167.22250978,0.00036798,2]
[314331372,1708189840551,-16167.22250978,0.00036798,2]
[314331374,1708189840561,-16167.22250978,0.00036798,2]
[314331376,1708189840571,-16167.22250978,0.00036798,2]
[314331378,1708189840581,-9454.491797,0.000368,2]
[314331381,1708189840591,-56205.123451,0.000368,2]
[314331383,1708189840601,-155.6,0.00036834,2]
[314331385,1708189840610,-177.43,0.000369,2]
[314331387,1708189840621,-150.0,0.000369,2]
[314331389,1708189840632,-3000.0,0.000369,2]
[314331391,1708189840642,-3000.0,0.000369,2]
[314331393,1708189840652,-3000.0,0.000369,2]
[314331395,1708189840662,-3000.0,0.000369,2]
[314331397,1708189840672,-3000.0,0.000369,2]
[314331399,1708189840682,-3000.0,0.000369,2]
[314331401,1708189840691,-3000.0,0.000369,2]
[314331403,1708189840701,-3000.0,0.000369,2]
[314331406,1708189840712,-3000.0,0.000369,2]
[314331408,1708189840721,-3000.0,0.000369,2]
[314331410,1708189840731,-3000.0,0.000369,2]
[314331412,1708189840741,-3000.0,0.000369,2]
[314331414,1708189840751,-3000.0,0.000369,2]
[314331416,1708189840761,-3000.0,0.000369,2]
[314331418,1708189840770,-4842.90253915,0.000369,2]
[314331420,1708189840780,-980.39,0.00036906,2]
[314331422,1708189840789,-150.0,0.00036986,2]
[314331424,1708189840799,-300.0,0.00036986,7]
[314331426,1708189840809,-450.0,0.00036986,12]
[314331428,1708189840819,-616.64550976,0.00036986,17]
[314331430,1708189840828,-1199.9999992,0.00037,38]
[314331432,1708189840839,-4267.1691272,0.00037,14]
[314331435,1708189840848,-12450.00249996,0.00037,2]
[314331437,1708189840858,-150.0,0.00037,2]
[314331439,1708189840868,-222.0878001,0.00037,2]
[314331441,1708189840878,-300.0,0.00037,5]
[314331443,1708189840887,-206.0,0.00037029,6]
[314331445,1708189840897,-9753.2,0.00037075,2]
[314331447,1708189840907,-14121.0,0.000373,3]
[314331449,1708189840917,-1806.08805947,0.00037372,8]
[314331451,1708189840926,-5554.75335702,0.00037385,10]
[314331453,1708189840936,-168.79,0.00037397,2]
[314331455,1708189840946,-151.0,0.00037409,7]
[314331457,1708189840956,-155.6,0.00037443,2]
[314331459,1708189840965,-177.43,0.00037448,2]
[314331462,1708189840975,-150.0,0.00037448,2]
[314331464,1708189840985,-275.97,0.00037522,2]
[314331466,1708189840995,-164.11335802,0.00037548,2]
[314331468,1708189841004,-300.0,0.00037548,5]
[314331470,1708189841014,-200.0,0.00037617,120]
[314331472,1708189841024,-3056.24969856,0.00037622,2]
[314331474,1708189841033,-2551.43713194,0.00037632,2]
[314331476,1708189841043,-180.0,0.00037671,2]
[314331478,1708189841054,-2391.0,0.000378,3]
[314331481,1708189841064,-2379093.32257465,0.0003788,2]
[314331483,1708189841074,-2124329.91524199,0.000379,2]
[314331485,1708189841084,-662251.499107,0.000379,3]
[314331486,1708189841094,-177.43,0.00037996,2]
[314331487,1708189841105,-150.0,0.00037996,2]
[314331505,1708189841317,-935.85066898,0.00038,2]
[314331508,1708189841330,-214.06588635,0.00038,4]
[314331510,1708189841339,-155.6,0.00038052,2]
[314331512,1708189841349,-300.0,0.00038096,5]
[314331514,1708189841358,-153.12463729,0.00038106,2]
[314331516,1708189841367,-151.0,0.00038172,4]
[314331518,1708189841377,-767.74308659,0.00038239,2]
[314331520,1708189841386,-838.65705194,0.00038239,2]
[314331522,1708189841395,-1152.02558214,0.00038239,2]
[314331524,1708189841404,-153.28047038,0.00038245,2]
[314331526,1708189841414,-9753.2,0.00038352,2]
[314331528,1708189841425,-154.78,0.00038356,2]
[314331530,1708189841434,-325.29,0.00038356,15]
[314331532,1708189841443,-201.6,0.00038356,2]
[314331534,1708189841453,-2000.0,0.000384,2]
[314331536,1708189841462,-1000.0,0.000384,2]
[314331538,1708189841471,-594.98452248,0.000385,29]
[314331540,1708189841480,-177.43,0.00038544,2]
[314331542,1708189841489,-150.0,0.00038544,2]
[314331544,1708189841498,-5554.75335702,0.00038553,12]
[314331546,1708189841507,-11818.114747,0.000386,2]
[314331548,1708189841517,-70256.404314,0.000386,2]
[314331550,1708189841528,-317.68851626,0.000386,2]
[314331552,1708189841537,-302.10331178,0.000386,2]
[314331554,1708189841547,-452.73387474,0.00038644,5]
[314331556,1708189841556,-155.6,0.0003866,2]
[314331558,1708189841565,-206.0,0.00038796,10]
[314331560,1708189841574,-594.98452245,0.0003882,30]
[314331562,1708189841583,-1526.68,0.00038868,2]
[314331564,1708189841599,-151.0,0.00038951,2]
[314331566,1708189841615,-1907.83291422,0.00039,2]
[314331568,1708189841628,-900.0,0.00039,40]
[314331570,1708189841637,-159.65,0.00039056,2]
[314331572,1708189841647,-177.43,0.00039092,2]
[314331574,1708189841656,-150.0,0.00039092,2]
[314331576,1708189841666,-1000.0,0.00039107,2]
[314331578,1708189841676,-594.98452245,0.0003914,30]
[314331580,1708189841685,-3056.24969856,0.00039201,2]
[314331582,1708189841694,-378.22,0.0003926,2]
[314331584,1708189841704,-155.6,0.00039269,2]
[314331586,1708189841713,-594.98452245,0.0003946,31]
[314331588,1708189841722,-150.0,0.00039476,2]
[314331590,1708189841731,-153.12463729,0.00039485,4]
[314331593,1708189841744,-200.0,0.00039561,20]
[314331595,1708189841753,-56095.12283166,0.00039567,2]
[314331597,1708189841762,-16167.22250978,0.00039567,2]
[314331599,1708189841772,-9753.2,0.0003963,2]
[314331601,1708189841781,-18922.0,0.00039637,2]
[314331602,1708189841790,-177.43,0.0003964,2]
[314331604,1708189841799,-150.0,0.0003964,2]
[314331607,1708189841810,-150.0,0.00039649,2]
[314331609,1708189841819,-6982.39311,0.000397,2]
[314331611,1708189841829,-50571.45,0.000397,4]
[314331613,1708189841839,-5554.75335702,0.00039721,13]
[314331615,1708189841848,-100000.0,0.0003976,2]
[314331617,1708189841857,-1806.08805947,0.0003978,9]
[314331619,1708189841866,-767.74308659,0.0003978,2]
[314331621,1708189841876,-838.65705194,0.0003978,2]
[314331623,1708189841885,-594.98452245,0.0003978,31]
[314331625,1708189841894,-1152.02558214,0.0003978,2]
[314331627,1708189841903,-188.82299199,0.00039791,2]
[314331629,1708189841912,-153.28047038,0.00039791,2]
[314331631,1708189841922,-4459.68519724,0.000398,7]
[314331633,1708189841931,-171382.68,0.000398,30]
[314331635,1708189841940,-159.65,0.00039837,2]
[314331637,1708189841950,-16545.360645,0.0003985,2]
[314331639,1708189841959,-98358.96604,0.0003985,2]
[314331641,1708189841969,-1001.77650296,0.0003986,5]
[314331643,1708189841978,-200.0,0.0003987,7]
[314331645,1708189841987,-200.0,0.0003987,7]
[314331647,1708189841996,-200.0,0.0003987,7]
[314331649,1708189842005,-1000.0,0.00039872,2]
[314331651,1708189842014,-227379.19420107,0.00039877,2]
[314331653,1708189842023,-155.6,0.00039878,2]
[314331655,1708189842033,-150.01,0.00039879,2]
[314331657,1708189842042,-3317.68767406,0.00039879,2]
[314331659,1708189842051,-150.0,0.00039879,30]
[314331661,1708189842060,-18344.17007784,0.0003988,2]
[314331663,1708189842070,-2000.0,0.0003988,2]
[314331665,1708189842079,-200.0,0.0003988,2]
[314331667,1708189842090,-5265136.77152583,0.0003988,2]
[314331669,1708189842100,-3000.0,0.0003988,2]
[314331671,1708189842109,-18344.17007784,0.0003988,2]
[314331673,1708189842120,-1270.47860103,0.00039891,2]
[314331675,1708189842129,-150.1,0.000399,4]
[314331677,1708189842138,-500.0,0.00039999,31]
[314331679,1708189842148,-238.50154243,0.00039999,31]
[314331681,1708189842159,-308.68878561,0.00039999,31]
[314331683,1708189842171,-500.0,0.00039999,31]
[314331685,1708189842179,-151.87339131,0.00039999,31]
[314331687,1708189842189,-1148.48046046,0.0004,2]
[314331689,1708189842200,-3118.14801883,0.0004,2]
[314331691,1708189842209,-155.0,0.0004,4]
[314331693,1708189842220,-680.60466879,0.0004,4]
[314331695,1708189842231,-20000.0,0.0004,7]
[314331697,1708189842240,-255.0,0.0004,12]
[314331698,1708189842249,-255.0,0.0004,12]
[314331700,1708189842259,-255.0,0.0004,12]
[314331702,1708189842269,-150.1,0.0004,4]
[314331704,1708189842278,-200.0,0.0004,30]
[314331706,1708189842287,-795.2,0.0004,2]
[314331708,1708189842297,-255.0,0.0004,12]
[314331711,1708189842307,-255.0,0.00040003,12]
[314331713,1708189842316,-333.6028489,0.00040102,12]
[314331715,1708189842326,-152.0,0.00040183,3]
[314331717,1708189842335,-177.43,0.00040188,2]
[314331719,1708189842344,-150.0,0.00040188,2]
[314331721,1708189842353,-200.0,0.000402,30]
[314331723,1708189842362,-166.94,0.00040276,2]
[314331726,1708189842372,-2000.0,0.00040279,2]
[314331729,1708189842380,-200.0,0.00040279,2]
[314331732,1708189842390,-287.63546888,0.000404,30]
[314331735,1708189842399,-155.6,0.00040487,2]
[314331738,1708189842409,-1000.0,0.00040499,2]
[314331741,1708189842418,-206.0,0.00040563,14]
[314331744,1708189842427,-159.65,0.00040619,2]
[314331747,1708189842437,-2000.0,0.00040682,2]
[314331749,1708189842447,-200.0,0.00040682,2]
[314331751,1708189842456,-378.22,0.00040733,2]
[314331753,1708189842465,-177.43,0.00040736,2]
[314331755,1708189842474,-150.0,0.00040736,2]
[314331757,1708189842482,-3056.24969856,0.00040779,5]
[314331759,1708189842491,-153.12463729,0.00040865,9]
[314331761,1708189842500,-5554.75335702,0.0004089,15]
[314331763,1708189842509,-800.0,0.00041,2]
[314331765,1708189842517,-166.0,0.00041,2]
[314331767,1708189842526,-152.345634,0.00041,2]
[314331769,1708189842536,-183.0,0.00041,14]
[314331771,1708189842545,-2000.0,0.00041088,2]
[314331773,1708189842554,-200.0,0.00041088,2]
[314331775,1708189842563,-2500.0,0.00041095,2]
[314331777,1708189842571,-750.0,0.00041095,2]
[314331779,1708189842580,-198.42759781,0.00041095,7]
[314331781,1708189842590,-160.19964425,0.00041095,7]
[314331783,1708189842601,-280.34184015,0.00041095,7]
[314331785,1708189842610,-209.16909667,0.00041095,7]
[314331787,1708189842619,-155.6,0.00041096,2]
[314331789,1708189842628,-183.0,0.00041096,2]
[314331791,1708189842638,-1000.0,0.00041096,12]
[314331793,1708189842647,-1000.0,0.00041096,12]
[314331796,1708189842660,-1000.0,0.00041096,12]
[314331797,1708189842670,-1000.0,0.00041096,12]
[314331800,1708189842679,-1000.0,0.00041096,12]
[314331802,1708189842691,-1000.0,0.00041096,12]
[314331803,1708189842702,-1000.0,0.00041096,12]
[314331806,1708189842712,-2000.0,0.000411,2]
[314331807,1708189842721,-1000.0,0.000411,2]
[314331809,1708189842730,-155.94774475,0.00041103,2]
[314331812,1708189842739,-20046.1189263,0.00041104,2]
[314331813,1708189842748,-135189.7013605,0.00041104,2]
[314331816,1708189842758,-6400.1831531,0.00041104,2]
[314331818,1708189842767,-66019.60119702,0.00041104,2]
[314331820,1708189842776,-1103.54391099,0.00041104,3]
[314331821,1708189842785,-15931.47244674,0.00041104,2]
[314331823,1708189842795,-5358.94753529,0.00041104,2]
[314331826,1708189842806,-283.32387974,0.00041104,2]
[314331828,1708189842815,-468.77508963,0.00041104,2]
[314331830,1708189842825,-155.39982316,0.00041104,2]
[314331832,1708189842834,-385.13127339,0.00041104,2]
[314331834,1708189842843,-18635.4757887,0.00041104,2]
[314331836,1708189842853,-5095.71440095,0.00041104,4]
[314331837,1708189842863,-466.0482353,0.00041104,2]
[314331838,1708189842872,-656.47572142,0.00041104,2]
[314331839,1708189842881,-311.01975504,0.00041104,2]
[314331840,1708189842891,-1224.17933206,0.00041104,4]
[314331841,1708189842899,-2543.56387118,0.00041104,2]
[314331842,1708189842908,-9008.17816563,0.00041104,4]
[314331843,1708189842917,-13837.21359141,0.00041104,7]
[314331845,1708189842927,-5514.42836242,0.00041104,13]
[314331847,1708189842936,-2644.91665641,0.00041104,2]
[314331849,1708189842945,-6224.69585873,0.00041104,4]
[314331851,1708189842954,-156.29488104,0.00041104,2]
[314331853,1708189842964,-17186.66812909,0.00041104,2]
[314331855,1708189842974,-1808.63572407,0.00041104,2]
[314331857,1708189842983,-155.29370094,0.00041104,2]
[314331859,1708189842992,-20009.47953652,0.00041104,2]
[314331861,1708189843004,-437.6563897,0.00041104,14]
[314331863,1708189843013,-4451.18179673,0.00041104,4]
[314331865,1708189843023,-38072.35991752,0.00041104,14]
[314331867,1708189843033,-29000.0,0.00041104,4]
[314331869,1708189843042,-5630.66900529,0.00041104,2]
[314331871,1708189843051,-8068.51835413,0.00041104,7]
[314331873,1708189843060,-8607.0,0.00041104,7]
[314331875,1708189843069,-6659.79422591,0.00041104,5]
[314331877,1708189843079,-637.97003882,0.00041104,2]
[314331879,1708189843088,-463.0,0.00041104,120]
[314331881,1708189843098,-150.0,0.00041104,30]
[314331883,1708189843107,-427.33535457,0.00041104,120]
[314331885,1708189843118,-1232.0,0.00041104,120]
[314331887,1708189843128,-151.5694382,0.00041104,60]
[314331889,1708189843137,-2321.0,0.00041104,120]
[314331891,1708189843146,-4432.0,0.00041104,120]
[314331893,1708189843155,-5588.05826682,0.00041104,120]
[314331895,1708189843167,-1526.68,0.00041132,2]
[314331897,1708189843178,-238.99199432,0.00041245,30]
[314331899,1708189843187,-177.43,0.00041284,2]
[314331901,1708189843197,-178.83894219,0.00041284,2]
[314331903,1708189843206,-159.65,0.000414,2]
[314331905,1708189843215,-150.0,0.00041465,7]
[314331907,1708189843227,-150.0,0.00041465,7]
[314331909,1708189843237,-150.0,0.00041465,7]
[314331911,1708189843246,-2000.0,0.00041499,2]
[314331913,1708189843256,-200.0,0.00041499,2]
[314331915,1708189843265,-166.94,0.00041606,2]
[314331917,1708189843274,-210.24,0.000418,2]
[314331919,1708189843283,-177.43,0.00041832,2]
[314331921,1708189843292,-150.0,0.00041835,7]
[314331923,1708189843301,-150.0,0.00041835,7]
[314331925,1708189843310,-150.0,0.00041835,7]
[314331927,1708189843319,-156.0420136,0.0004189,30]
[314331929,1708189843328,-150.5,0.00041921,120]
[314331931,1708189843337,-192.29,0.00041921,120]
[314331933,1708189843346,-150.5,0.00041931,120]
[314331935,1708189843355,-150.5,0.00041931,120]
[314331937,1708189843364,-231.21,0.00041941,120]
[314331939,1708189843374,-150.5,0.00041941,120]
[314331941,1708189843382,-150.5,0.00041941,120]
[314331943,1708189843391,-150.0,0.00041999,30]
[314331945,1708189843400,-150.0,0.00041999,30]
[314331947,1708189843409,-3917.74457025,0.00042,10]
[314331949,1708189843418,-316.03132048,0.00042,2]
[314331951,1708189843427,-8722.5118314,0.00042,2]
[314331953,1708189843436,-198286.10475032,0.00042,4]
[314331955,1708189843445,-338.5789,0.00042,59]
[314331957,1708189843454,-965.47916117,0.00042,7]
[314331959,1708189843463,-4000.0,0.00042,3]
[314331961,1708189843472,-1297.63261035,0.0004201,2]
[314331963,1708189843481,-156.0420136,0.00042038,30]
[314331965,1708189843490,-5554.75335702,0.00042058,16]
[314331967,1708189843499,-157.09408925,0.00042087,30]
[314331969,1708189843508,-325.29,0.00042092,15]
[314331971,1708189843517,-159.65,0.00042181,2]
[314331977,1708189843565,-150.0,0.00042205,7]
[314331979,1708189843574,-150.0,0.00042205,7]
[314331981,1708189843583,-150.0,0.00042205,7]
[314331983,1708189843593,-378.22,0.00042205,2]
[314331985,1708189843602,-153.12463729,0.00042245,15]
[314331987,1708189843611,-2120.92834576,0.000423,3]
[314331989,1708189843620,-206.0,0.0004233,18]
[314331991,1708189843629,-156.0420136,0.00042336,30]
[314331993,1708189843639,-56095.12283166,0.00042344,4]
[314331995,1708189843648,-16167.22250978,0.00042344,4]
[314331997,1708189843657,-3056.24969856,0.00042358,5]
[314331999,1708189843666,-161.54154612,0.00042375,30]
[314332001,1708189843676,-177.43,0.0004238,2]
[314332003,1708189843684,-750.0,0.00042465,3]
[314332005,1708189843693,-158.23203844,0.00042545,30]
[314332007,1708189843702,-150.0,0.00042574,7]
[314332009,1708189843710,-150.0,0.00042574,7]
[314332011,1708189843719,-161.54154612,0.00042591,30]
[314332013,1708189843728,-2063.82,0.000426,4]
[314332014,1708189843737,-2063.82,0.000426,4]
[314332016,1708189843746,-2063.82,0.000426,4]
[314332018,1708189843754,-2063.82,0.000426,4]
[314332020,1708189843763,-2063.82,0.000426,4]
[314332022,1708189843772,-2063.82,0.000426,4]
[314332024,1708189843781,-2063.82,0.000426,4]
[314332026,1708189843790,-2063.82,0.000426,4]
[314332029,1708189843799,-2063.82,0.000426,4]
[314332031,1708189843808,-2063.82,0.000426,4]
[314332033,1708189843818,-2063.82,0.000426,4]
[314332034,1708189843826,-2063.82,0.000426,4]
[314332036,1708189843836,-2063.82,0.000426,4]
[314332038,1708189843845,-2063.82,0.000426,4]
[314332040,1708189843854,-2063.82,0.000426,4]
[314332042,1708189843862,-2063.82,0.000426,4]
[314332044,1708189843871,-2063.82,0.000426,4]
[314332046,1708189843880,-2063.82,0.000426,4]
[314332048,1708189843889,-2063.82,0.000426,4]
[314332050,1708189843898,-2063.82,0.000426,4]
[314332053,1708189843908,-154.31,0.000426,4]
[314332055,1708189843917,-154.31,0.000426,4]
[314332056,1708189843925,-1000.0,0.00042738,2]
[314332059,1708189843934,-730.0589355,0.00042897,10]
[314332061,1708189843943,-558.69814152,0.000429,30]
[314332062,1708189843953,-558.69814146,0.000429,30]
[314332064,1708189843961,-558.69814146,0.000429,30]
[314332067,1708189843971,-166.05101383,0.00042908,30]
[314332069,1708189843980,-177.43,0.00042928,2]
[314332071,1708189843990,-166.94,0.00042935,2]
[314332073,1708189843999,-150.0,0.00042944,7]
[314332075,1708189844007,-150.0,0.00042944,7]
[314332077,1708189844016,-159.65,0.00042962,2]
[314332079,1708189844025,-165.40063134,0.00042997,30]
[314332081,1708189844034,-330750.26468739,0.00042998,3]
[314332083,1708189844043,-317.68851626,0.00042998,2]
[314332084,1708189844052,-302.10331178,0.00042998,2]
[314332086,1708189844061,-152.0,0.0004319,4]
[314332088,1708189844071,-5554.75335702,0.00043227,18]
[314332090,1708189844080,-151.0,0.00043279,2]
[314332092,1708189844088,-250.49088,0.00043279,2]
[314332094,1708189844097,-1526.68,0.00043396,2]
[314332096,1708189844107,-177.43,0.00043476,2]
[314332098,1708189844117,-558.69814146,0.00043608,34]
[314332100,1708189844127,-153.12463729,0.00043624,20]
[314332102,1708189844136,-378.22,0.00043677,2]
[314332104,1708189844145,-4494.52071107,0.00043744,13]
[314332106,1708189844155,-156.0420136,0.0004379,30]
[314332108,1708189844164,-2000.0,0.000438,2]
[314332110,1708189844174,-1437.71968609,0.00043803,12]
[314332112,1708189844183,-13989.49496958,0.00043833,13]
[314332114,1708189844193,-52650.75079005,0.00043833,14]
[314332115,1708189844202,-36901.53284285,0.00043833,13]
[314332117,1708189844211,-250.0,0.00043835,7]
[314332118,1708189844220,-750.0,0.00043835,3]
[314332119,1708189844229,-9961.87129602,0.00043863,13]
[314332120,1708189844238,-161.54154612,0.00043901,30]
[314332121,1708189844247,-3056.24969856,0.00043937,5]
[314332122,1708189844256,-79040.6844685,0.00044,8]
[314332123,1708189844266,-7395.38928204,0.00044,2]
[314332124,1708189844275,-160.0,0.00044,90]
[314332127,1708189844284,-302.0,0.00044007,4]
[314332128,1708189844293,-177.43,0.00044024,2]
[314332129,1708189844302,-206.0,0.00044097,22]
[314332130,1708189844311,-156.0420136,0.00044125,30]
[314332131,1708189844320,-166.94,0.00044265,2]